[Event "Reykjavik Open 2024"]
[Site "Reykjavik"]
[Date "2024.03.18"]
[Round "6.33"]
[White "Papadiamandis, Elliot"]
[Black "Hauksdottir, Hrund"]
[Result "1-0"]
[ECO "C77"]
[WhiteElo "2302"]
[BlackElo "1859"]
[Annotator "TA"]
[PlyCount "71"]
[EventDate "2024.03.12"]
[EventCountry "ISL"]
[SourceTitle "playchess.com"]
[Source "ChessBase"]
[SourceQuality "1"]
[TimeControl "40/5400+30:1800+30"]

{[%evp 13,71,31,41,35,36,26,28,11,52,16,39,32,62,54,90,52,68,50,83,78,85,88,92,93,70,87,81,90,87,89,116,118,118,117,128,130,218,220,212,211,215,181,155,171,200,194,263,272,271,252,370,366,367,330,378,354,363,279,412,393]} 1. e4 {[%emt 0:03:37]} e5 {[%emt 0:00:12]} 2. Nf3 {[%emt 0:01:03]} Nc6 {[%emt 0:00:16]} 3. Bb5 {[%emt 0:00:31]} a6 {[%emt 0:00:33]} 4. Ba4 {[%emt 0:00:22]} Nf6 {[%emt 0:01:14]} 5. d3 {[%emt 0:00:38]} b5 {[%emt 0:01:04]} 6. Bb3 {[%emt 0:00:01]} Be7 {[%emt 0:00:43]} 7. a4 {[%emt 0:02:38]} Rb8 {[%emt 0:02:59]} 8. axb5 {[%emt 0:05:46]} axb5 {[%emt 0:00:29]} 9. Nc3 {[%emt 0:04:51]} O-O {[%emt 0:01:58]} 10. Nd5 {[%emt 0:04:24] Weiß hat minimalen Vorteil.} d6 {[%emt 0:06:30]} 11. O-O {[%emt 0:13:18]} Bg4 {[%emt 0:02:44]} 12. c3 {[%emt 0:00:17]} h6 {[%emt 0:17:03]} 13. h3 {[%emt 0:05:32]} Bc8 {[%emt 0:30:59]} 14. Nh2 {[%emt 0:10:37] Weiß hat aktiveres Spiel.} Re8 {[%emt 0:09:38]} 15. Qf3 {[%emt 0:15:37]} Be6 {[%emt 0:09:28]} 16. Ra6 {[%emt 0:00:34]} Bxd5 {[%emt 0:02:36]} 17. Bxd5 {[%emt 0:05:59]} Nxd5 {[%emt 0:00:32]} 18. exd5 {[%emt 0:00:11]} e4 {[%emt 0:00:16]} 19. dxe4 {[%emt 0:00:20]} Ne5 {[%emt 0:00:50]} 20. Qd1 {[%emt 0:02:20]} Qc8 {[%emt 0:02:01]} 21. Ra7 {[%emt 0:02:13]} Rb7 {[%emt 0:01:13]} 22. Rxb7 {[%emt 0:01:16]} Qxb7 {[%emt 0:00:04]} 23. Ng4 {[%emt 0:00:23]} Bf8 {[%emt 0:02:35]} 24. Bxh6 {[%emt 0:06:10]} Nc4 {[%emt 0:02:57]} (24... c6 $16 {war nötig.} 25. Be3 Nxg4 26. Qxg4 cxd5 27. exd5 Qxd5) 25. b3 $18 {[%emt 0:01:19]} Ne5 {[%emt 0:00:19]} 26. Be3 {[%emt 0:01:54]} c6 {[%emt 0:00:59][%cal Bc7c6,Bc6c5][%mdl 32]} 27. Qd4 {[%emt 0:01:15]} c5 {[%emt 0:01:03]} 28. Qd1 {[%emt 0:00:07]} b4 {[%emt 0:01:22]} 29. c4 {[%emt 0:02:25]} Qd7 {[%emt 0:00:44]} (29... Nxg4 $142 30. Qxg4 Qa7) 30. Nxe5 {[%emt 0:01:00]} Rxe5 {[%emt 0:00:07]} 31. Qc2 {[%emt 0:00:36]} Qe7 {[%emt 0:00:33]} (31... Re8 $142 32. Bf4 Qd8) 32. Bf4 {[%emt 0:01:06]} ({Finger weg von} 32. f3 g6 33. Ra1 Bg7 34. Ra8+ Kh7 $18) 32... Rh5 {[%emt 0:01:33]} 33. Re1 {[%emt 0:00:59]} g6 {[%emt 0:00:26]} 34. Qd3 {[%emt 0:01:09]} Bg7 {[%emt 0:00:19]} 35. Re2 {[%emt 0:00:36]} Rh4 {[%emt 0:00:31]} (35... Be5 $142) 36. Qg3 {[%emt 0:00:35] Gewichteter Fehlerwert: Weiß=0.10 (sehr präzise) /Schwarz=0.27 (präzise) .  Fehler:       	---       	Schwarz=4     Ungenau:       	Weiß=2     	Schwarz=5     OK:         	Weiß=15    	Schwarz=7     Bester:       	---       	Schwarz=1} 1-0

[Event "Reykjavik Open 2024"]
[Site "Reykjavik"]
[Date "2024.03.18"]
[Round "6.34"]
[White "Klimkowski, Jan"]
[Black "Wong-Godfrey, Emerson P"]
[Result "1-0"]
[ECO "A57"]
[WhiteElo "2532"]
[BlackElo "1799"]
[Annotator "TA"]
[PlyCount "91"]
[EventDate "2024.03.12"]
[EventCountry "ISL"]
[SourceTitle "playchess.com"]
[Source "ChessBase"]
[SourceQuality "1"]
[TimeControl "40/5400+30:1800+30"]

{[%evp 26,91,72,76,171,172,164,160,242,225,278,235,304,88,95,0,0,0,0,0,0,0,0,0,87,86,88,88,89,84,79,66,62,58,107,108,193,160,188,172,323,278,270,96,81,81,252,254,276,280,273,270,408,392,373,352,1191,1078,29977,29980,29980,29981,29981,29979,29979,29980,29980,29980]} 1. d4 {[%emt 0:00:26]} Nf6 {[%emt 0:00:07]} 2. c4 {[%emt 0:00:05]} c5 {[%emt 0:00:13]} 3. d5 {[%emt 0:00:34]} b5 {[%emt 0:00:44]} 4. cxb5 {[%emt 0:00:24]} a6 {[%emt 0:00:09]} 5. e3 {[%emt 0:03:34]} g6 {[%emt 0:04:33]} 6. Nc3 {[%emt 0:00:18]} Bg7 {[%emt 0:02:45]} 7. Nf3 {[%emt 0:01:18]} O-O {[%emt 0:01:04]} 8. a4 {[%emt 0:01:22]} d6 {[%emt 0:01:48]} 9. e4 {[%emt 0:01:29]} axb5 {[%emt 0:02:34]} 10. Bxb5 {[%emt 0:00:36]} Ba6 {[%emt 0:01:29]} 11. Bd2 {[%emt 0:10:53]} Bxb5 {[%emt 0:10:05]} 12. axb5 {[%emt 0:00:07]} Rxa1 {[%emt 0:01:07]} 13. Qxa1 {[%emt 0:00:05]} Qb6 {[%emt 0:01:33]} 14. O-O {[%emt 0:01:52]} Ne8 {[%emt 0:01:10]} (14... Nbd7 $16) 15. Bg5 $18 {[%emt 0:06:08]} f6 {[%emt 0:08:16] Schwarz ist schwach auf den weissen Feldern} 16. Be3 {[%emt 0:00:04]} Nc7 {[%emt 0:03:18] [#]} (16... Nd7 $16 17. b4 f5) 17. b4 $1 {[%emt 0:02:45]} ({Finger weg von} 17. Qa4 $6 Nd7 $16) 17... Nd7 {[%emt 0:15:49][%cal Of6f5]} 18. bxc5 {[%emt 0:00:08]} Nxc5 {[%emt 0:01:13]} 19. Qa2 $2 {[%emt 0:11:15]} (19. Rb1 $18 {und Weiss behält klar die Oberhand.}) 19... Nxb5 $16 {[%emt 0:13:50] [#]} 20. Nxb5 {[%emt 0:20:00]} (20. Qb2 $1 $16 Rb8 21. Rb1 Nxc3 22. Qxb6 Rxb6 23. Rxb6 N5xe4 24. Bd4) 20... Qxb5 $11 {[%emt 0:00:44]} 21. Rb1 {[%emt 0:02:24][%cal Bf1b1,Bb1b7,Bb7c7][%mdl 32]} Qa4 {[%emt 0:05:34]} 22. Qxa4 {[%emt 0:00:19]} Nxa4 {[%emt 0:00:02]} 23. Rb7 {[%emt 0:06:01]} Re8 {[%emt 0:04:25]} 24. Rc7 {[%emt 0:01:50]} e5 {[%emt 0:02:33]} (24... f5 $11) 25. g4 $16 {[%emt 0:03:20]} Rb8 {[%emt 0:02:47]} 26. Nd2 {[%emt 0:01:21]} Bf8 {[%emt 0:04:27]} 27. h4 {[%emt 0:00:47]} Rb4 {[%emt 0:01:16]} 28. f3 {[%emt 0:03:50]} Nb2 {[%emt 0:03:50]} 29. Kf1 {[%emt 0:01:40]} Nd3 {[%emt 0:01:56]} (29... Ra4 $14) 30. Ke2 {[%emt 0:00:59]} Nc5 {[%emt 0:00:13]} (30... Nb2 $16 31. Rc8 Kf7 32. Rc7+ Kg8) 31. Bxc5 $18 {[%emt 0:02:18]} dxc5 {[%emt 0:00:03][%mdl 4096] Endspiel. KRB-KRN} 32. Kd3 {[%emt 0:00:53]} f5 $2 {[%emt 0:02:40]} (32... Rd4+ 33. Kc3 f5 34. gxf5 gxf5) 33. gxf5 {[%emt 0:00:58]} gxf5 {[%emt 0:00:02]} 34. Nc4 $2 {[%emt 0:05:49]} (34. exf5 $18 {bietet bessere Gewinnchancen. Droht stark Ne4.} Rd4+ 35. Ke2) 34... Rb3+ $16 {[%emt 0:01:31]} 35. Ke2 {[%emt 0:00:05] Schwarz muss nun d6 beachten. Weiß hat aktiveres Spiel.} fxe4 $2 {[%emt 0:00:29] Danach kann Schwarz die Partie nicht mehr halten.} (35... Rb4 $16 36. Nxe5 fxe4) 36. fxe4 $18 {[%emt 0:00:06]} Rh3 {[%emt 0:00:18]} 37. Nxe5 {[%emt 0:01:44]} Rxh4 {[%emt 0:00:31]} 38. Kf3 {[%emt 0:00:07]} Bd6 {[%emt 0:01:11]} (38... Bh6 $142 39. Nd7 (39. Rxc5 Bg5 $11) 39... Rf4+ 40. Kg2 c4 41. Rxc4 Bg5) 39. Rc8+ {[%emt 0:00:02]} Kg7 {[%emt 0:00:09]} 40. Nc4 {[%emt 0:00:39]} Rh6 {[%emt 0:03:24]} (40... Be7 41. d6 Bg5 42. Rxc5 Bd8 43. Rc7+ Kh6) 41. e5 {[%emt 0:34:39]} Rh5 {[%emt 0:04:39]} 42. exd6 {[%emt 0:00:00] Weiß setzt Matt.} Rxd5 {[%emt 0:00:22]} 43. Ke4 {[%emt 0:00:00]} Rd4+ {[%emt 0:00:51]} 44. Ke5 {[%emt 0:00:00]} Rxc4 {[%emt 0:00:11]} 45. d7 {[%emt 0:00:00]} Rd4 {[%emt 0:00:44]} 46. d8=Q {[%emt 0:00:00] Gewichteter Fehlerwert: Weiß=0.23 (präzise) /Schwarz=0.64.  Verlustzug:     	---       	Schwarz=1     Gewinn verpasst:   	Weiß=2     	---        Fehler:       	Weiß=1     	Schwarz=7     Ungenau:       	---       	Schwarz=1     OK:         	Weiß=14    	Schwarz=6     Bester:       	Weiß=3     	Schwarz=3     Stark:        	Weiß=1     	---} 1-0

[Event "Reykjavik Open 2024"]
[Site "Reykjavik"]
[Date "2024.03.18"]
[Round "6.35"]
[White "Cherukuri, Nitesh"]
[Black "Cornette, Matthieu"]
[Result "0-1"]
[ECO "C54"]
[WhiteElo "2000"]
[BlackElo "2575"]
[Annotator "TA"]
[PlyCount "58"]
[EventDate "2024.03.12"]
[EventCountry "ISL"]
[SourceTitle "playchess.com"]
[Source "ChessBase"]
[SourceQuality "1"]
[TimeControl "40/5400+30:1800+30"]

{[%evp 18,58,18,28,40,25,2,0,0,0,0,-29,8,-64,-25,-166,-47,-144,-112,-128,-119,-104,-117,-196,-102,-196,-188,-318,-279,-262,-258,-783,-787,-687,-772,-728,-705,-734,-722,-1912,-1932,-1822,-1390]} 1. e4 {[%emt 0:07:12]} e5 {[%emt 0:00:16]} 2. Nf3 {[%emt 0:00:12]} Nc6 {[%emt 0:00:05]} 3. Bc4 {[%emt 0:00:04]} Nf6 {[%emt 0:00:08]} 4. d3 {[%emt 0:00:05]} Bc5 {[%emt 0:00:32]} 5. c3 {[%emt 0:00:11]} d6 {[%emt 0:00:18]} 6. O-O {[%emt 0:00:26]} a6 {[%emt 0:00:13]} 7. a4 {[%emt 0:00:14]} Ba7 {[%emt 0:00:26]} 8. Nbd2 {[%emt 0:00:54]} O-O {[%emt 0:00:42]} 9. h3 {[%emt 0:00:33]} Ne7 {[%emt 0:00:16]} 10. Re1 {[%emt 0:01:17]} Ng6 {[%emt 0:00:18][%cal Oc8h3]} 11. Nf1 {[%emt 0:00:49]} c6 {[%emt 0:00:22]} 12. Ng3 {[%emt 0:03:44]} d5 {[%emt 0:03:00] Die Stellung ist ausgeglichen.} 13. Ba2 {[%emt 0:01:29]} Be6 {[%emt 0:01:28]} 14. Qc2 {[%emt 0:05:30]} Qc7 {[%emt 0:08:27]} 15. Nf5 {[%emt 0:12:04]} (15. Bg5 $11) 15... Rfe8 {[%emt 0:17:56]} (15... Qd7 $5 16. Ng3 Bxh3 17. exd5 Nh5 18. dxc6 (18. Nxh5 $2 {geht unter.} Qg4 $19) (18. Nxe5 $2 {zu gefräßig.} Nxe5 19. Rxe5 Nxg3 $19) 18... bxc6 $11 (18... Qg4 19. d4 $11)) 16. g4 {[%emt 0:04:35]} (16. N3h4 $11) 16... Nd7 {[%emt 0:07:23]} (16... h5 $19 17. Nh2 Nf4 18. Bxf4 exf4) 17. h4 {[%emt 0:08:02] [#]} (17. Kh1 $15) 17... h5 $1 {[%emt 0:03:23][%mdl 512]} 18. gxh5 {[%emt 0:09:01]} Bxf5 {[%emt 0:00:22]} 19. hxg6 {[%emt 0:00:29]} (19. exf5 e4 20. Kf1 exf3 $19) 19... Bxg6 {[%emt 0:00:23]} 20. Kg2 {[%emt 0:02:49]} (20. Ng5 $17) 20... Nc5 {[%emt 0:05:15]} ({Günstiger ist} 20... Nf6 $19 {Weiss muss nun ...Qd7 beachten.} 21. Ng5 Rad8) 21. Bg5 {[%emt 0:06:21]} (21. Ng5 $17 {kämpft weiter.}) 21... Qd7 $19 {[%emt 0:00:45]} 22. Kg3 {[%emt 0:02:55]} (22. Nh2 {ist der einzige Weg für Weiss..}) 22... Bh5 {[%emt 0:04:19]} 23. Nh2 {[%emt 0:00:33]} Ne6 {[%emt 0:07:02][%cal Oe6f4] Und ...Nf4! würde nun gewinnen.} 24. Rg1 $2 {[%emt 0:05:36] [#]} (24. f3) 24... Nf4 $1 {[%emt 0:03:13][%mdl 512] Schwarz steht klar auf Gewinn.} 25. Bxf4 {[%emt 0:01:37]} exf4+ {[%emt 0:00:04]} 26. Kg2 {[%emt 0:00:12] [#]} f3+ $1 {[%emt 0:00:47][%mdl 512]} 27. Kh1 {[%emt 0:00:06]} Bb8 {[%emt 0:00:13]} 28. e5 {[%emt 0:01:37]} Bxe5 {[%emt 0:02:02] ( -> ...Qh3)} 29. d4 {[%emt 0:00:13]} Bxh2 {[%emt 0:02:27] Schwarz nahm nach der Eröffnung die Zügel in die Hand.   Gewichteter Fehlerwert: Weiß=0.86/Schwarz=0.22 (präzise) .  Fehler:       	Weiß=7     	Schwarz=2     Ungenau:       	Weiß=1     	Schwarz=2     OK:         	Weiß=1     	Schwarz=7     Bester:       	Weiß=3     	---} 0-1

[Event "Reykjavik Open 2024"]
[Site "Reykjavik"]
[Date "2024.03.18"]
[Round "6.36"]
[White "Solsker, Tummas M."]
[Black "Gokerkan, Cem Kaan"]
[Result "0-1"]
[ECO "D02"]
[WhiteElo "1897"]
[BlackElo "2523"]
[Annotator "TA"]
[PlyCount "86"]
[EventDate "2024.03.12"]
[EventCountry "ISL"]
[SourceTitle "playchess.com"]
[Source "ChessBase"]
[SourceQuality "1"]
[TimeControl "40/5400+30:1800+30"]

{[%evp 13,86,-11,-2,-21,-16,-20,-16,-34,35,26,81,62,81,30,34,34,54,-16,-25,-79,-79,-62,-68,-65,-56,-106,-108,-102,-92,-170,-179,-202,-157,-162,-164,-163,-162,-159,-153,-156,-153,-145,-142,-224,-225,-268,-271,-278,-253,-278,-246,-254,-245,-460,-434,-394,-233,-414,-440,-645,-559,-552,-552,-637,-632,-637,-630,-633,-587,-627,-620,-611,-580,-553,-552]} 1. d4 {[%emt 0:00:02]} Nf6 {[%emt 0:01:54]} 2. Nf3 {[%emt 0:02:15]} d5 {[%emt 0:00:35]} 3. Bf4 {[%emt 0:00:09]} c5 {[%emt 0:00:15]} 4. e3 {[%emt 0:00:15]} Nc6 {[%emt 0:00:10]} 5. c3 {[%emt 0:02:41]} Qb6 {[%emt 0:00:34]} 6. Qb3 {[%emt 0:12:04]} c4 {[%emt 0:01:24]} 7. Qxb6 {[%emt 0:00:29]} axb6 {[%emt 0:00:02]} 8. Be2 {[%emt 0:01:26]} h6 {[%emt 0:15:24]} 9. O-O {[%emt 0:07:24]} b5 {[%emt 0:01:00]} 10. Na3 {[%emt 0:05:24] The position is equal.} g5 {[%emt 0:10:15]} (10... Na7 $1 $15) 11. Be5 {[%emt 0:05:03]} b4 {[%emt 0:02:42]} (11... Nxe5 $11 12. dxe5 Ne4) 12. Nb5 {[%emt 0:00:35]} Ra5 {[%emt 0:00:34]} 13. a4 {[%emt 0:10:34]} (13. Nc7+ $16 Kd8 14. cxb4 Nxb4 15. e4 Nxe4 (15... Rxa2 $2 16. Rxa2 Nxa2 17. Nxd5 $18) (15... dxe4 16. Nd2 $14) 16. a3 (16. Bxh8 Kxc7 17. Ne5 Be6 $11) (16. Nxd5 Nxd5 17. Bxh8 Nf4 $11)) 13... bxa3 $11 {[%emt 0:12:01]} 14. Nxa3 {[%emt 0:02:05]} Bf5 {[%emt 0:00:08] [#]} 15. Nxc4 {[%emt 0:12:14]} dxc4 {[%emt 0:01:46]} 16. Bxc4 {[%emt 0:01:09]} (16. Bxf6 exf6 17. Bxc4 Bd6 18. Rxa5 Nxa5 $17) (16. Rxa5 $1 $11 {keeps the balance.} Nxa5 17. Ra1) 16... Bg7 $17 {[%emt 0:01:47]} 17. Rxa5 {[%emt 0:00:25]} Nxa5 {[%emt 0:00:00]} 18. Bb5+ {[%emt 0:00:21]} Bd7 {[%emt 0:00:38]} 19. Ra1 {[%emt 0:07:43]} ({White should play} 19. Bd3 $15 Nb3 20. Bc2) 19... Bxb5 {[%emt 0:00:03]} 20. Rxa5 {[%emt 0:00:11]} Be2 {[%emt 0:00:01]} 21. Rc5 {[%emt 0:08:48]} (21. Nd2 $17) 21... O-O $19 {[%emt 0:00:50]} 22. Rc7 {[%emt 0:00:15]} Ng4 {[%emt 0:07:47]} 23. h3 {[%emt 0:06:37] Bxg7 would now be deadly.} Nxe5 {[%emt 0:00:14]} 24. Nxe5 {[%emt 0:00:13]} Bxe5 {[%emt 0:03:06]} 25. dxe5 {[%emt 0:00:01][%mdl 4096] Endgame. [#] KRB-KR} e6 $1 {[%emt 0:00:04]} 26. Rxb7 {[%emt 0:00:17]} Rd8 {[%emt 0:00:01]} 27. Rb4 {[%emt 0:01:45]} Rd5 {[%emt 0:00:24]} 28. f4 {[%emt 0:00:18]} (28. f3 $17) 28... Rd2 {[%emt 0:00:23]} 29. c4 {[%emt 0:02:32]} Rc2 {[%emt 0:00:13]} 30. b3 {[%emt 0:00:26]} Bd3 {[%emt 0:00:03]} 31. g4 {[%emt 0:04:23]} Re2 {[%emt 0:02:45]} 32. c5 {[%emt 0:00:53]} Rxe3 {[%emt 0:00:10]} 33. c6 $2 {[%emt 0:00:30]} (33. fxg5 hxg5 (33... Rxh3 34. c6 $11) (33... Rxe5 $2 34. Rd4 $19) 34. Rd4) 33... Re1+ {[%emt 0:00:12]} (33... Rxh3 34. Ra4 $18) 34. Kf2 {[%emt 0:00:20]} Rc1 {[%emt 0:00:07]} (34... Re2+ $142 35. Kg1 Rc2) 35. Rd4 $2 {[%emt 0:02:29]} (35. Ke3 {was called for.} Bf1 36. fxg5 Rxc6 (36... hxg5 $2 37. Kf2 $19) 37. gxh6 Rc3+ (37... Bxh3 38. Kf4 $17) 38. Kd4 Rd3+ (38... Rxh3 $2 39. Rb8+ Kh7 40. Rf8 $19) 39. Kc4) 35... Bb5 {[%emt 0:00:12]} 36. h4 {[%emt 0:03:12]} (36. fxg5 $142 hxg5 (36... Bxc6 $2 37. gxh6 Rc3 38. h4 $19) 37. Rd8+ Kg7 38. Rb8 Bxc6 39. Rc8) 36... gxf4 {[%emt 0:00:18]} 37. Rxf4 {[%emt 0:00:11]} Rxc6 {[%emt 0:00:30]} 38. b4 {[%emt 0:01:24]} Rc3 {[%emt 0:01:23]} 39. Rd4 {[%emt 0:00:24]} Kg7 {[%emt 0:00:24]} 40. Rf4 {[%emt 0:00:57]} Rd3 {[%emt 0:01:16]} 41. Re4 {[%emt 0:30:38]} Bc6 {[%emt 0:32:05]} 42. Rf4 {[%emt 0:01:34]} Bb7 {[%emt 0:00:16]} 43. Rc4 {[%emt 0:00:00]} Rd5 {[%emt 0:00:00] Weighted Error Value: White=0.40/Black=0.22 (precise) .  Mistake:       	White=9     	Black=3      OK:         	White=9     	Black=10     Best:        	White=2     	Black=4} 0-1

[Event "Reykjavik Open 2024"]
[Site "Reykjavik"]
[Date "2024.03.18"]
[Round "6.37"]
[White "Brand, Niels"]
[Black "Mammadzada, Gunay"]
[Result "0-1"]
[ECO "D03"]
[WhiteElo "1891"]
[BlackElo "2449"]
[Annotator "TA"]
[PlyCount "80"]
[EventDate "2024.03.12"]
[EventCountry "ISL"]
[SourceTitle "playchess.com"]
[Source "ChessBase"]
[SourceQuality "1"]
[TimeControl "40/5400+30:1800+30"]

{[%evp 9,80,-10,26,0,13,8,10,14,36,33,36,27,50,24,58,27,31,-4,23,11,10,5,29,22,35,10,2,7,8,0,0,0,0,-121,-119,-119,-147,-141,-144,-112,-106,-98,-102,-102,-95,-106,-87,-137,-120,-136,-128,-141,-127,-148,-146,-145,-146,-417,-373,-530,-531,-675,-669,-581,-643,-709,-654,-641,-640,-606,-604,-1261,-1224]} 1. d4 {[%emt 0:00:03]} d5 {[%emt 0:01:21]} 2. Nf3 {[%emt 0:00:23]} Nf6 {[%emt 0:00:29]} 3. Bg5 {[%emt 0:00:29]} Ne4 {[%emt 0:00:27]} 4. Bf4 {[%emt 0:00:40]} c5 {[%emt 0:02:18]} 5. Nbd2 {[%emt 0:03:52]} e6 {[%emt 0:02:55]} 6. e3 {[%emt 0:03:08]} Nc6 {[%emt 0:00:36]} 7. Bd3 {[%emt 0:01:08]} Nxd2 {[%emt 0:09:52]} 8. Qxd2 {[%emt 0:01:55] The position is equal.} Be7 {[%emt 0:05:28]} 9. c3 {[%emt 0:03:42]} O-O {[%emt 0:06:26]} 10. h4 {[%emt 0:09:51]} f5 {[%emt 0:06:25]} 11. Qe2 {[%emt 0:11:58]} Bd6 {[%emt 0:01:05]} 12. Bxd6 {[%emt 0:09:17]} Qxd6 {[%emt 0:00:05]} 13. h5 {[%emt 0:02:45]} h6 {[%emt 0:02:48]} 14. Nh4 {[%emt 0:00:50][%cal Bf3h4,Bh4g6,Bg6f4][%mdl 32]} e5 {[%emt 0:00:59]} 15. Ng6 {[%emt 0:00:33] Dodges cxd4} e4 {[%emt 0:06:16]} 16. Bb5 {[%emt 0:03:18]} Rf6 {[%emt 0:01:10]} 17. dxc5 {[%emt 0:02:03]} Qxc5 {[%emt 0:00:14]} 18. O-O-O {[%emt 0:00:18][%cal Od1d5] [#] Strongly threatening Rxd5!} Be6 {[%emt 0:13:58]} 19. Kb1 {[%emt 0:08:13]} Bf7 {[%emt 0:07:03]} 20. Nf4 {[%emt 0:00:22][%cal Of4d5] And now Nxd5! would win.} Ne5 {[%emt 0:00:19]} 21. Rd2 {[%emt 0:01:55]} (21. Ba4 $11) 21... Rb6 $17 {[%emt 0:03:22]} 22. Ba4 {[%emt 0:04:24]} Nc4 {[%emt 0:09:52] Black is more active.} ({Resist} 22... Qxc3 23. Rc2 (23. Nxd5 Qa5 $11) 23... Qa5 24. Bb3) 23. Bb3 {[%emt 0:00:10]} Nxd2+ {[%emt 0:00:58]} 24. Qxd2 {[%emt 0:00:03][%cal Oh1d1]} Rd8 {[%emt 0:02:10]} 25. Rd1 {[%emt 0:03:06]} Rbd6 {[%emt 0:00:19]} 26. Qe2 {[%emt 0:00:22]} Qc8 {[%emt 0:01:07]} 27. Qb5 {[%emt 0:00:41]} a6 {[%emt 0:00:29]} 28. Qb4 {[%emt 0:00:44]} ({White must play} 28. Qe2) 28... b6 {[%emt 0:01:28]} 29. Qd4 {[%emt 0:00:17]} Qd7 {[%emt 0:02:23]} 30. Rh1 {[%emt 0:01:33]} Qe7 {[%emt 0:00:37]} 31. Rh3 {[%emt 0:00:49]} Qf6 {[%emt 0:00:20]} 32. Qd1 {[%emt 0:00:37]} b5 {[%emt 0:00:38][%cal Ob5b4]} 33. Qe2 $2 {[%emt 0:00:31][%mdl 8192] Now White is beyond hope.} (33. Ne2 $17) 33... b4 $19 {[%emt 0:00:52]} 34. cxb4 {[%emt 0:05:34]} (34. Qd2 $142) 34... d4 {[%emt 0:00:06] [#] Threatens to win with ...Bxb3. Black is clearly winning.} 35. exd4 {[%emt 0:00:25]} Rxd4 {[%emt 0:01:31][%cal Od4d2] ...Rd2! would now be deadly.} 36. Bxf7+ {[%emt 0:02:46]} Qxf7 {[%emt 0:00:04]} 37. Rc3 {[%emt 0:01:06]} Rd2 {[%emt 0:05:40]} 38. Qe3 {[%emt 0:00:28]} Rd1+ {[%emt 0:00:18]} 39. Rc1 {[%emt 0:00:41]} Qc4 {[%emt 0:01:34][%cal Od8c8] ( -> ...Rc8!)} 40. Qc3 {[%emt 0:00:38]} Qf1 {[%emt 0:00:47] Weighted Error Value: White=0.55/Black=0.10 (very precise) .  Loses game:     	White=1     	---        Mistake:       	White=3     	---        Inaccurate:     	White=3     	Black=2      OK:         	White=6     	Black=11     Best:        	---       	Black=1} 0-1